lending/lending_fUSD_20250819
["ID","MTS","AMOUNT","RATE_DAILY","PERIOD"]
[380275810,1755631065072,-1672.31,0.00024643,30]
[380275811,1755631065099,-1648.48,0.00024643,30]
[380275812,1755631065129,-8716.72,0.00024643,30]
[380275813,1755631065157,-1174.9,0.00024643,30]
[380275814,1755631065184,-1247.73,0.00024643,30]
[380275815,1755631065210,-400.0,0.00024643,30]
[380275816,1755631065237,-2800.23,0.00024643,30]
[380275817,1755631065262,-400.0,0.00024643,30]
[380275818,1755631065288,-1855.67,0.00024643,30]
[380275819,1755631065314,-1549.4,0.00024643,30]
[380275820,1755631065343,-2735.6,0.00024643,30]
[380275821,1755631065370,-549.35,0.00024643,30]
[380275822,1755631065398,-1600.8,0.00024643,30]
[380275823,1755631065426,-1083.07,0.00024643,30]
[380275824,1755631065452,-2521.93,0.00024643,30]
[380275825,1755631065479,-407.03,0.00024643,30]
[380275826,1755631065505,-1663.82,0.00024643,30]
[380275827,1755631065530,-1863.39,0.00024643,30]
[380275828,1755631065556,-2006.03,0.00024643,30]
[380275829,1755631065583,-867.04,0.00024643,30]
[380275830,1755631065608,-1558.27,0.00024643,30]
[380275831,1755631065634,-1625.91,0.00024643,30]
[380275832,1755631065659,-3914.85,0.00024643,30]
[380275833,1755631065684,-801.03,0.00024643,30]
[380275834,1755631065709,-400.0,0.00024643,30]
[380275835,1755631065735,-1784.81,0.00024643,30]
[380275836,1755631065763,-400.0,0.00024643,30]
[380275837,1755631065789,-1785.17,0.00024643,30]
[380275838,1755631065814,-2242.56,0.00024643,30]
[380275839,1755631065851,-1700.25,0.00024643,30]
[380275840,1755631065878,-834.13,0.00024643,30]
[380275841,1755631065907,-1018.63,0.00024643,30]
[380275842,1755631066222,-484.61,0.00024643,30]
[380275843,1755631066250,-400.0,0.00024643,30]
[380275844,1755631066277,-1460.04,0.00024643,30]
[380275845,1755631066304,-801.25,0.00024643,30]
[380275846,1755631066333,-4032.43,0.00024643,30]
[380275847,1755631066359,-2527.74,0.00024643,30]
[380275848,1755631066386,-4275.48,0.00024643,30]
[380275849,1755631066413,-400.0,0.00024643,30]
[380275850,1755631066439,-1812.27,0.00024643,30]
[380275851,1755631066465,-400.0,0.00024643,30]
[380275852,1755631066493,-400.0,0.00024643,30]
[380275853,1755631066528,-434.72,0.00024643,30]
[380275854,1755631066583,-7013.86,0.00024643,30]
[380275855,1755631066620,-1435.4,0.00024643,30]
[380275856,1755631066647,-1890.92,0.00024643,30]
[380275857,1755631066673,-4142.44,0.00024643,30]
[380275858,1755631066699,-400.0,0.00024643,30]
[380275859,1755631066725,-400.0,0.00024643,30]
[380275860,1755631066752,-1487.81,0.00024643,30]
[380275861,1755631066780,-1775.43,0.00024643,30]
[380275862,1755631066807,-9303.97,0.00024643,30]
[380275863,1755631066834,-824.79,0.00024643,30]
[380275864,1755631066860,-2003.15,0.00024643,30]
[380275865,1755631066888,-400.0,0.00024643,30]
[380275866,1755631066914,-1357.73,0.00024643,30]
[380275867,1755631066945,-3458.05,0.00024643,30]
[380275868,1755631066971,-400.0,0.00024643,30]
[380275869,1755631066996,-400.0,0.00024643,30]
[380275870,1755631067023,-1146.31,0.00024643,30]
[380275871,1755631067049,-400.0,0.00024643,30]
[380275872,1755631067079,-1420.57,0.00024643,30]
[380275873,1755631067119,-2399.65,0.00024643,30]
[380275874,1755631067146,-5837.98,0.00024643,30]
[380275875,1755631067172,-400.0,0.00024643,30]
[380275876,1755631067199,-8152.85,0.00024643,30]
[380275877,1755631067226,-400.0,0.00024643,30]
[380275878,1755631067256,-8014.73,0.00024643,30]
[380275879,1755631067282,-3351.12,0.00024643,30]
[380275880,1755631067307,-444.69,0.00024643,30]
[380275881,1755631067337,-713.75,0.00024643,30]
[380275882,1755631067363,-400.0,0.00024643,30]
[380275883,1755631067392,-840.72,0.00024643,30]
[380275884,1755631067418,-5044.7,0.00024643,30]
[380275885,1755631067444,-3116.05,0.00024643,30]
[380275886,1755631067470,-2077.84,0.00024643,30]
[380275887,1755631067495,-755.9,0.00024643,30]
[380275888,1755631067521,-3767.8,0.00024643,30]
[380275889,1755631067546,-400.0,0.00024643,30]
[380275890,1755631067574,-400.0,0.00024643,30]
[380275891,1755631067601,-981.8,0.00024643,30]
[380275892,1755631067626,-630.29,0.00024643,30]
[380275893,1755631067652,-458.85,0.00024643,30]
[380275894,1755631067678,-1623.73,0.00024643,30]
[380275895,1755631067708,-1621.47,0.00024643,30]
[380275896,1755631067735,-665.7,0.00024643,30]
[380275897,1755631067765,-7442.7,0.00024643,30]
[380275898,1755631067791,-1470.22,0.00024643,30]
[380275899,1755631067822,-400.0,0.00024643,30]
[380275900,1755631067852,-3397.55,0.00024643,30]
[380275901,1755631067878,-400.0,0.00024643,30]
[380275902,1755631067906,-581.67,0.00024643,30]
[380275903,1755631067933,-1256.26,0.00024643,30]
[380275904,1755631067960,-4233.21,0.00024657,30]
[380275905,1755631067990,-4233.21,0.00024657,30]
[380275906,1755631068018,-4233.21,0.00024657,30]
[380275907,1755631068047,-4233.21,0.00024657,30]
[380275908,1755631068085,-4233.21,0.00024657,30]
[380275909,1755631068125,-4233.21,0.00024657,30]
[380275910,1755631068174,-4233.21,0.00024657,30]
[380275911,1755631068212,-159.95114314,0.00024658,30]
[380275912,1755631068242,-500.0,0.00024658,30]
[380275913,1755631068284,-176.03574196,0.00024917,30]
[380275914,1755631068316,-893.8,0.00024917,30]
[380275915,1755631068348,-1796.62,0.00024917,30]
[380275916,1755631068376,-2151.13,0.00024917,30]
[380275917,1755631068404,-400.0,0.00024917,30]
[380275918,1755631068431,-400.0,0.00024917,30]
[380275919,1755631068458,-400.0,0.00024917,30]
[380275920,1755631068486,-1524.91,0.00024917,30]
[380275921,1755631068517,-400.0,0.00024917,30]
[380275922,1755631068548,-1268.61,0.00024917,30]
[380275923,1755631068583,-3537.65,0.00024917,30]
[380275924,1755631068614,-400.0,0.00024917,30]
[380275925,1755631068644,-632.78,0.00024917,30]
[380275926,1755631068672,-1091.34,0.00024917,30]
[380275927,1755631068700,-1777.71,0.00024917,30]
[380275928,1755631068726,-1517.91,0.00024917,30]
[380275929,1755631068758,-400.0,0.00024917,30]
[380275930,1755631068794,-449.25,0.00024917,30]
[380275931,1755631068842,-400.0,0.00024917,30]
[380275932,1755631068869,-603.15,0.00024917,30]
[380275933,1755631068896,-737.73,0.00024917,30]
[380275934,1755631068922,-759.41,0.00024917,30]
[380275935,1755631068951,-2887.56,0.00024917,30]
[380275936,1755631069269,-1092.33,0.00024917,30]
[380275937,1755631069297,-400.0,0.00024917,30]
[380275938,1755631069327,-1154.89,0.00024917,30]
[380275939,1755631069354,-400.0,0.00024917,30]
[380275940,1755631069381,-400.0,0.00024917,30]
[380275941,1755631069407,-540.17,0.00024917,30]
[380275942,1755631069432,-1604.08,0.00024917,30]
[380275943,1755631069457,-400.0,0.00024917,30]
[380275944,1755631069483,-558.64,0.00024917,30]
[380275945,1755631069508,-464.91,0.00024917,30]
[380275946,1755631069533,-400.0,0.00024917,30]
[380275947,1755631069559,-996.27,0.00024917,30]
[380275948,1755631069587,-400.0,0.00024917,30]
[380275949,1755631069613,-1174.54,0.00024917,30]
[380275950,1755631069641,-400.0,0.00024917,30]
[380275951,1755631069668,-400.0,0.00024917,30]
[380275952,1755631069694,-467.39,0.00024917,30]
[380275953,1755631069724,-1287.79,0.00024917,30]
[380275954,1755631069751,-410.72,0.00024917,30]
[380275955,1755631069780,-645.33,0.00024917,30]
[380275956,1755631069806,-400.0,0.00024917,30]
[380275957,1755631069836,-400.0,0.00024917,30]
[380275958,1755631069862,-400.0,0.00024917,30]
[380275959,1755631069889,-435.71,0.00024917,30]
[380275960,1755631069915,-400.0,0.00024917,30]
[380275961,1755631069940,-591.41,0.00024917,30]
[380275962,1755631069966,-400.0,0.00024917,30]
[380275963,1755631069992,-1211.51,0.00024917,30]
[380275964,1755631070020,-657.43,0.00024917,30]
[380275965,1755631070046,-1321.19,0.00024917,30]
[380275966,1755631070076,-2333.41,0.00024917,30]
[380275967,1755631070103,-3141.86,0.00024917,30]
[380275968,1755631070131,-441.64,0.00024917,30]
[380275969,1755631070158,-895.33,0.00024917,30]
[380275970,1755631070186,-1312.21,0.00024917,30]
[380275971,1755631070212,-610.43,0.00024917,30]
[380275972,1755631070238,-912.37,0.00024917,30]
[380275973,1755631070265,-5048.43,0.00024917,30]
[380275974,1755631070292,-2777.22,0.00024917,30]
[380275975,1755631070318,-2638.42,0.00024917,30]
[380275976,1755631070348,-542.11,0.00024917,30]
[380275977,1755631070376,-400.0,0.00024917,30]
[380275978,1755631070403,-854.75,0.00024917,30]
[380275979,1755631070436,-582.29,0.00024917,30]
[380275980,1755631070465,-2058.34,0.00024917,30]
[380275981,1755631070497,-807.81,0.00024917,30]
[380275982,1755631070541,-2108.39,0.00024917,30]
[380275983,1755631070567,-400.0,0.00024917,30]
[380275984,1755631070596,-3236.93,0.00024917,30]
[380275985,1755631070623,-2755.38,0.00024917,30]
[380275986,1755631070649,-494.07,0.00024917,30]
[380275987,1755631070674,-771.8,0.00024917,30]
[380275988,1755631070700,-400.0,0.00024917,30]
[380275989,1755631070726,-1485.66,0.00024917,30]
[380275990,1755631070752,-1688.58,0.00024917,30]
[380275991,1755631070783,-400.0,0.00024917,30]
[380275992,1755631070817,-2731.01,0.00024917,30]
[380275993,1755631070850,-716.5,0.00024917,30]
[380275994,1755631070879,-408.32,0.00024917,30]
[380275995,1755631070906,-400.0,0.00024917,30]
[380275996,1755631070933,-1382.11,0.00024917,30]
[380275997,1755631070959,-2951.24,0.00024917,30]
[380275998,1755631070985,-6757.75,0.00024917,30]
[380275999,1755631071011,-812.97,0.00024917,30]
[380276000,1755631071044,-1007.53,0.00024917,30]
[380276001,1755631071076,-1417.55,0.00024917,30]
[380276002,1755631071105,-400.0,0.00024917,30]
[380276003,1755631071134,-2420.72,0.00024917,30]
[380276004,1755631071162,-447.89,0.00024917,30]
[380276005,1755631071190,-319.43977277,0.00024917,30]
[380276006,1755631071218,-632.73,0.00024917,30]
[380276007,1755631071246,-553.64,0.00024917,30]
[380276008,1755631071273,-744.53,0.00024917,30]
[380276009,1755631071300,-1672.31,0.00024917,30]
[380276010,1755631071330,-1648.48,0.00024917,30]
[380276011,1755631071358,-8716.72,0.00024917,30]
[380276012,1755631071384,-1174.9,0.00024917,30]
[380276013,1755631071412,-1247.73,0.00024917,30]
[380276014,1755631071437,-400.0,0.00024917,30]
[380276015,1755631071462,-2800.23,0.00024917,30]
[380276016,1755631071488,-400.0,0.00024917,30]
[380276017,1755631071513,-1855.67,0.00024917,30]
[380276018,1755631071538,-1549.4,0.00024917,30]
[380276019,1755631071564,-2735.6,0.00024917,30]
[380276020,1755631071591,-549.35,0.00024917,30]
[380276021,1755631071616,-1600.8,0.00024917,30]
[380276022,1755631071641,-1083.07,0.00024917,30]
[380276023,1755631071667,-2521.93,0.00024917,30]
[380276024,1755631071694,-407.03,0.00024917,30]
[380276025,1755631071721,-1663.82,0.00024917,30]
[380276026,1755631071750,-1863.39,0.00024917,30]
[380276027,1755631071778,-2006.03,0.00024917,30]
[380276028,1755631071808,-867.04,0.00024917,30]
[380276029,1755631071849,-1558.27,0.00024917,30]
[380276030,1755631072123,-1625.91,0.00024917,30]
[380276031,1755631072154,-3914.85,0.00024917,30]
[380276032,1755631072181,-801.03,0.00024917,30]
[380276033,1755631072209,-400.0,0.00024917,30]
[380276034,1755631072235,-1784.81,0.00024917,30]
[380276035,1755631072261,-400.0,0.00024917,30]
[380276036,1755631072287,-1785.17,0.00024917,30]
[380276037,1755631072314,-2242.56,0.00024917,30]
[380276038,1755631072342,-1700.25,0.00024917,30]
[380276039,1755631072369,-834.13,0.00024917,30]
[380276040,1755631072395,-1018.63,0.00024917,30]
[380276041,1755631072421,-484.61,0.00024917,30]
[380276042,1755631072447,-400.0,0.00024917,30]
[380276043,1755631072481,-1460.04,0.00024917,30]
[380276044,1755631072512,-801.25,0.00024917,30]
[380276045,1755631072538,-4032.43,0.00024917,30]
[380276046,1755631072564,-2527.74,0.00024917,30]
[380276047,1755631072589,-4275.48,0.00024917,30]
[380276048,1755631072614,-400.0,0.00024917,30]
[380276049,1755631072640,-1812.27,0.00024917,30]
[380276050,1755631072665,-506.70804215,0.00024917,30]
[380276051,1755631072693,-253.30743531,0.00024917,30]
[380276052,1755631072720,-434.72,0.00024917,30]
[380276053,1755631072749,-1435.4,0.00024917,30]
[380276054,1755631072781,-7013.86,0.00024917,30]
[380276055,1755631072807,-1890.92,0.00024917,30]
[380276056,1755631072839,-4142.44,0.00024917,30]
[380276057,1755631072876,-400.0,0.00024917,30]
[380276058,1755631072903,-400.0,0.00024917,30]
[380276059,1755631072929,-1775.43,0.00024917,30]
[380276060,1755631072955,-9303.97,0.00024917,30]
[380276061,1755631072981,-824.79,0.00024917,30]
[380276062,1755631073008,-2003.15,0.00024917,30]
[380276063,1755631073036,-400.0,0.00024917,30]
[380276064,1755631073065,-1357.73,0.00024917,30]
[380276065,1755631073094,-3458.05,0.00024917,30]
[380276066,1755631073121,-1487.81,0.00024917,30]
[380276067,1755631073148,-400.0,0.00024917,30]
[380276068,1755631073174,-400.0,0.00024917,30]
[380276069,1755631073200,-4233.21,0.00024917,30]
[380276070,1755631073225,-1146.31,0.00024917,30]
[380276071,1755631073251,-400.0,0.00024917,30]
[380276072,1755631073277,-1420.57,0.00024917,30]
[380276073,1755631073302,-2399.65,0.00024917,30]
[380276074,1755631073330,-5837.98,0.00024917,30]
[380276075,1755631073356,-400.0,0.00024917,30]
[380276076,1755631073389,-8152.85,0.00024917,30]
[380276077,1755631073426,-407.73657279,0.00024917,30]
[380276078,1755631073453,-8014.73,0.00024917,30]
[380276079,1755631073479,-3351.12,0.00024917,30]
[380276080,1755631073504,-444.69,0.00024917,30]
[380276081,1755631073529,-713.75,0.00024917,30]
[380276082,1755631073553,-400.0,0.00024917,30]
[380276083,1755631073581,-840.72,0.00024917,30]
[380276084,1755631073607,-5044.7,0.00024917,30]
[380276085,1755631073632,-3116.05,0.00024917,30]
[380276086,1755631073657,-2077.84,0.00024917,30]
[380276087,1755631073681,-755.9,0.00024917,30]
[380276088,1755631073707,-3767.8,0.00024917,30]
[380276089,1755631073732,-400.0,0.00024917,30]
[380276090,1755631073760,-400.0,0.00024917,30]
[380276091,1755631073786,-630.29,0.00024917,30]
[380276092,1755631073813,-458.85,0.00024917,30]
[380276093,1755631073843,-1623.73,0.00024917,30]
[380276094,1755631073877,-1621.47,0.00024917,30]
[380276095,1755631073904,-665.7,0.00024917,30]
[380276096,1755631073931,-7442.7,0.00024917,30]
[380276097,1755631073957,-1470.22,0.00024917,30]
[380276098,1755631073983,-3397.55,0.00024917,30]
[380276099,1755631074009,-400.0,0.00024917,30]
[380276100,1755631074035,-1256.26,0.00024917,30]
[380276101,1755631074060,-150.0,0.00024932,30]
[380276102,1755631074087,-150.0,0.00024932,30]
[380276103,1755631074112,-150.0,0.00024932,30]
[380276104,1755631074139,-500.0,0.00024932,30]
[380276105,1755631074165,-500.0,0.00024932,30]
[380276106,1755631074191,-511.0,0.00024932,30]
[380276107,1755631074218,-200.0,0.00024932,30]
[380276108,1755631074246,-500.0,0.00024932,30]
[380276109,1755631074276,-150.0,0.00025,30]
[380276110,1755631074303,-843.87140665,0.00025,30]
[380276111,1755631074330,-500.0,0.00025,120]
[380276112,1755631074357,-150.0,0.00025,30]
[380276113,1755631074384,-160.0,0.00025,30]
[380276114,1755631074411,-400.0,0.00025191,30]
[380276115,1755631074438,-400.0,0.00025191,30]
[380276116,1755631074465,-424.48,0.00025191,30]
[380276117,1755631074492,-400.0,0.00025191,30]
[380276118,1755631074518,-573.46,0.00025191,30]
[380276119,1755631074544,-1099.82,0.00025191,30]
[380276120,1755631074569,-1032.27,0.00025191,30]
[380276121,1755631074608,-405.59,0.00025191,30]
[380276122,1755631074636,-2773.84,0.00025191,30]
[380276123,1755631074662,-2616.85,0.00025191,30]
[380276124,1755631074688,-569.65,0.00025191,30]
[380276125,1755631075058,-609.41,0.00025191,30]
[380276126,1755631075086,-2291.88,0.00025191,30]
[380276127,1755631075115,-1113.47,0.00025191,30]
[380276128,1755631075144,-1609.3,0.00025191,30]
[380276129,1755631075174,-1375.63,0.00025191,30]
[380276130,1755631075204,-2391.62,0.00025191,30]
[380276131,1755631075237,-567.71,0.00025191,30]
[380276132,1755631075266,-976.66,0.00025191,30]
[380276133,1755631075299,-444.55,0.00025191,30]
[380276134,1755631075333,-400.0,0.00025191,30]
[380276135,1755631075364,-655.88,0.00025191,30]
[380276136,1755631075393,-400.0,0.00025191,30]
[380276137,1755631075420,-1066.76,0.00025191,30]
[380276138,1755631075448,-750.6,0.00025191,30]
[380276139,1755631075476,-400.0,0.00025191,30]
[380276140,1755631075511,-983.97,0.00025191,30]
[380276141,1755631075539,-1275.26,0.00025191,30]
[380276142,1755631075567,-475.91,0.00025191,30]
[380276143,1755631075597,-2197.7,0.00025191,30]
[380276144,1755631075626,-441.25,0.00025191,30]
[380276145,1755631075654,-400.0,0.00025191,30]
[380276146,1755631075683,-400.0,0.00025191,30]
[380276147,1755631075711,-400.0,0.00025191,30]
[380276148,1755631075741,-514.92,0.00025191,30]
[380276149,1755631075775,-400.0,0.00025191,30]
[380276150,1755631075804,-400.0,0.00025191,30]
[380276151,1755631075834,-633.48,0.00025191,30]
[380276152,1755631075864,-680.06,0.00025191,30]
[380276153,1755631075892,-400.0,0.00025191,30]
[380276154,1755631075919,-514.84,0.00025191,30]
[380276155,1755631075946,-2380.79,0.00025191,30]
[380276156,1755631075973,-2214.91,0.00025191,30]
[380276157,1755631076000,-2318.11,0.00025191,30]
[380276158,1755631076028,-624.94,0.00025191,30]
[380276159,1755631076060,-480.84,0.00025191,30]
[380276160,1755631076088,-457.25,0.00025191,30]
[380276161,1755631076116,-600.44,0.00025191,30]
[380276162,1755631076144,-840.02,0.00025191,30]
[380276163,1755631076172,-1691.99,0.00025191,30]
[380276164,1755631076200,-1037.15,0.00025191,30]
[380276165,1755631076228,-400.0,0.00025191,30]
[380276166,1755631076257,-400.0,0.00025191,30]
[380276167,1755631076284,-513.97,0.00025191,30]
[380276168,1755631076312,-933.24,0.00025191,30]
[380276169,1755631076341,-400.0,0.00025191,30]
[380276170,1755631076370,-421.43,0.00025191,30]
[380276171,1755631076399,-674.85,0.00025191,30]
[380276172,1755631076426,-925.02,0.00025191,30]
[380276173,1755631076453,-2152.71,0.00025191,30]
[380276174,1755631076480,-1838.62,0.00025191,30]
[380276175,1755631076506,-400.0,0.00025191,30]
[380276176,1755631076534,-1032.92,0.00025191,30]
[380276177,1755631076560,-618.96,0.00025191,30]
[380276178,1755631076589,-400.0,0.00025191,30]
[380276179,1755631076617,-2177.09,0.00025191,30]
[380276180,1755631076644,-1491.89,0.00025191,30]
[380276181,1755631076671,-400.0,0.00025191,30]
[380276182,1755631076699,-400.0,0.00025191,30]
[380276183,1755631076724,-521.21,0.00025191,30]
[380276184,1755631076751,-808.44,0.00025191,30]
[380276185,1755631076782,-400.0,0.00025191,30]
[380276186,1755631076809,-400.0,0.00025191,30]
[380276187,1755631076836,-741.66,0.00025191,30]
[380276188,1755631076863,-400.0,0.00025191,30]
[380276189,1755631076890,-400.0,0.00025191,30]
[380276190,1755631076916,-520.65,0.00025191,30]
[380276191,1755631076942,-759.93,0.00025191,30]
[380276192,1755631076968,-400.0,0.00025191,30]
[380276193,1755631076993,-400.0,0.00025191,30]
[380276194,1755631077023,-1990.94,0.00025191,30]
[380276195,1755631077051,-400.0,0.00025191,30]
[380276196,1755631077080,-400.0,0.00025191,30]
[380276197,1755631077109,-1171.85,0.00025191,30]
[380276198,1755631077136,-400.0,0.00025191,30]
[380276199,1755631077164,-400.0,0.00025191,30]
[380276200,1755631077192,-2003.39,0.00025191,30]
[380276201,1755631077221,-400.0,0.00025191,30]
[380276202,1755631077248,-400.0,0.00025191,30]
[380276203,1755631077275,-400.0,0.00025191,30]
[380276204,1755631077312,-400.0,0.00025191,30]
[380276205,1755631077343,-727.99,0.00025191,30]
[380276206,1755631077371,-1683.21,0.00025191,30]
[380276207,1755631077397,-721.89,0.00025191,30]
[380276208,1755631077424,-400.0,0.00025191,30]
[380276209,1755631077451,-400.0,0.00025191,30]
[380276210,1755631077478,-933.6,0.00025191,30]
[380276211,1755631077504,-1540.32,0.00025191,30]
[380276212,1755631077531,-667.4,0.00025191,30]
[380276213,1755631077558,-1549.09,0.00025191,30]
[380276214,1755631077585,-400.0,0.00025191,30]
[380276215,1755631077612,-447.13,0.00025191,30]
[380276216,1755631077638,-400.0,0.00025191,30]
[380276217,1755631077664,-400.0,0.00025191,30]
[380276218,1755631077690,-834.9,0.00025191,30]
[380276219,1755631077717,-2463.0,0.00025191,30]
[380276220,1755631078231,-2651.29,0.00025191,30]
[380276221,1755631078259,-400.0,0.00025191,30]
[380276222,1755631078287,-1180.21,0.00025191,30]
[380276223,1755631078313,-2251.53,0.00025191,30]
[380276224,1755631078343,-1354.08,0.00025191,30]
[380276225,1755631078371,-476.92,0.00025191,30]
[380276226,1755631078399,-400.0,0.00025191,30]
[380276227,1755631078427,-1498.84,0.00025191,30]
[380276228,1755631078456,-536.56319083,0.00025191,30]
[380276229,1755631078484,-1077.46,0.00025191,30]
[380276230,1755631078519,-893.12,0.00025191,30]
[380276231,1755631078550,-400.0,0.00025191,30]
[380276232,1755631078579,-994.07,0.00025191,30]
[380276233,1755631078607,-400.0,0.00025191,30]
[380276234,1755631078634,-1190.15,0.00025191,30]
[380276235,1755631078660,-400.0,0.00025191,30]
[380276236,1755631078691,-400.0,0.00025191,30]
[380276237,1755631078719,-1019.51,0.00025191,30]
[380276238,1755631078746,-400.0,0.00025191,30]
[380276239,1755631078777,-477.1,0.00025191,30]
[380276240,1755631078806,-1865.24,0.00025191,30]
[380276241,1755631078834,-947.97,0.00025191,30]
[380276242,1755631078862,-400.0,0.00025191,30]
[380276243,1755631078890,-400.0,0.00025191,30]
[380276244,1755631078917,-400.0,0.00025191,30]
[380276245,1755631078946,-437.88,0.00025191,30]
[380276246,1755631078974,-1607.24,0.00025191,30]
[380276247,1755631079002,-400.0,0.00025191,30]
[380276248,1755631079033,-400.0,0.00025191,30]
[380276249,1755631079062,-482.8,0.00025191,30]
[380276250,1755631079093,-400.0,0.00025191,30]
[380276251,1755631079122,-1008.25,0.00025191,30]
[380276252,1755631079152,-400.0,0.00025191,30]
[380276253,1755631079183,-400.0,0.00025191,30]
[380276254,1755631079216,-411.04,0.00025191,30]
[380276255,1755631079248,-438.9,0.00025191,30]
[380276256,1755631079280,-400.0,0.00025191,30]
[380276257,1755631079310,-2238.16,0.00025191,30]
[380276258,1755631079341,-400.0,0.00025191,30]
[380276259,1755631079372,-400.0,0.00025191,30]
[380276260,1755631079402,-282.53066408,0.00025191,30]
[380276261,1755631079431,-698.53,0.00025191,30]
[380276262,1755631079462,-605.66,0.00025191,30]
[380276263,1755631079492,-400.0,0.00025191,30]
[380276264,1755631079524,-461.41,0.00025191,30]
[380276265,1755631079555,-1632.1,0.00025191,30]
[380276266,1755631079586,-579.14,0.00025191,30]
[380276267,1755631079616,-400.0,0.00025191,30]
[380276268,1755631079647,-400.0,0.00025191,30]
[380276269,1755631079678,-400.0,0.00025191,30]
[380276270,1755631079707,-400.0,0.00025191,30]
[380276271,1755631079737,-400.0,0.00025191,30]
[380276272,1755631079765,-1825.28,0.00025191,30]
[380276273,1755631079794,-1523.06,0.00025191,30]
[380276274,1755631079821,-400.0,0.00025191,30]
[380276275,1755631079851,-400.0,0.00025191,30]
[380276276,1755631079878,-408.97,0.00025191,30]
[380276277,1755631079905,-400.0,0.00025191,30]
[380276278,1755631079931,-403.44,0.00025191,30]
[380276279,1755631079957,-350.70675147,0.00025191,30]
[380276280,1755631079984,-400.0,0.00025191,30]
[380276281,1755631080011,-445.03,0.00025191,30]
[380276282,1755631080040,-400.0,0.00025191,30]
[380276283,1755631080069,-1358.16,0.00025191,30]
[380276284,1755631080100,-410.03,0.00025191,30]
[380276285,1755631080128,-400.0,0.00025191,30]
[380276286,1755631080156,-288.12387476,0.00025191,30]
[380276287,1755631080186,-400.0,0.00025191,30]
[380276288,1755631080215,-912.76,0.00025191,30]
[380276289,1755631080246,-1223.73,0.00025191,30]
[380276290,1755631080277,-400.0,0.00025191,30]
[380276291,1755631080307,-390.28266063,0.00025191,30]
[380276292,1755631080341,-964.55,0.00025191,30]
[380276293,1755631080370,-907.48,0.00025191,30]
[380276294,1755631080398,-416.73054609,0.00025191,30]
[380276295,1755631080426,-1038.22,0.00025191,30]
[380276296,1755631080452,-400.0,0.00025191,30]
[380276297,1755631080488,-400.0,0.00025191,30]
[380276298,1755631080519,-2133.63,0.00025191,30]
[380276299,1755631080547,-406.02,0.00025191,30]
[380276300,1755631080576,-960.18,0.00025191,30]
[380276301,1755631080607,-1003.4,0.00025191,30]
[380276302,1755631080633,-416.9,0.00025191,30]
[380276303,1755631080659,-479.67,0.00025191,30]
[380276304,1755631080685,-1658.41,0.00025191,30]
[380276305,1755631080712,-400.0,0.00025191,30]
[380276306,1755631080740,-672.86,0.00025191,30]
[380276307,1755631080768,-1715.1,0.00025191,30]
[380276308,1755631080797,-400.0,0.00025191,30]
[380276309,1755631080824,-503.65,0.00025191,30]